[Event "*** Titled Tuesday Blitz"]
[Site "Chess.com"]
[Date "2021.03.09"]
[Round "8"]
[White "pavelalexandru07"]
[Black "witcher8"]
[Result "0-1"]
[WhiteElo "2302"]
[BlackElo "2451"]
[TimeControl "180+1"]
[EndTime "11:30:39 PST"]
[Termination "witcher8 won on time"]

1. e4 {[%clk 0:02:58.5]} 1... c6 {[%clk 0:02:59.6]} 2. d4 {[%clk 0:02:53.5]}
2... d5 {[%clk 0:03:00.5]} 3. Nc3 {[%clk 0:02:52.2]} 3... dxe4 {[%clk
0:03:00.4]} 4. Nxe4 {[%clk 0:02:52]} 4... Bf5 {[%clk 0:03:01.3]} 5. Ng3 {[%clk
0:02:51.8]} 5... Bg6 {[%clk 0:03:01.6]} 6. Nf3 {[%clk 0:02:52.4]} 6... Nd7
{[%clk 0:03:01.3]} 7. h4 {[%clk 0:02:53.1]} 7... h6 {[%clk 0:03:01.5]} 8. Bd3
{[%clk 0:02:53.8]} 8... Bxd3 {[%clk 0:03:01.3]} 9. Qxd3 {[%clk 0:02:54.2]} 9...
e6 {[%clk 0:03:02]} 10. h5 {[%clk 0:02:54.6]} 10... Ngf6 {[%clk 0:03:01.6]} 11.
Bd2 {[%clk 0:02:54.4]} 11... Be7 {[%clk 0:02:59.8]} 12. O-O-O {[%clk 0:02:54.5]}
12... O-O {[%clk 0:02:58.3]} 13. Kb1 {[%clk 0:02:53.9]} 13... Qb6 {[%clk
0:02:56.6]} 14. c4 {[%clk 0:02:40.7]} 14... Rfd8 {[%clk 0:02:44.8]} 15. Bc3
{[%clk 0:02:34.5]} 15... c5 {[%clk 0:02:43.3]} 16. Qe2 {[%clk 0:02:25]} 16...
cxd4 {[%clk 0:02:41]} 17. Nxd4 {[%clk 0:02:19.5]} 17... Bb4 {[%clk 0:02:30.6]}
18. Bxb4 {[%clk 0:01:38.4]} 18... Qxb4 {[%clk 0:02:31.5]} 19. Rhe1 {[%clk
0:01:32.5]} 19... Rac8 {[%clk 0:02:24.8]} 20. b3 {[%clk 0:01:32.2]} 20... a5
{[%clk 0:02:24.6]} 21. Nb5 {[%clk 0:01:24.8]} 21... a4 {[%clk 0:02:02.2]} 22.
Qb2 {[%clk 0:01:13.8]} 22... axb3 {[%clk 0:01:58.9]} 23. axb3 {[%clk 0:01:05.1]}
23... Nc5 {[%clk 0:01:54.6]} 24. Kc2 {[%clk 0:00:35.5]} 24... Rxd1 {[%clk
0:01:41.2]} 25. Rxd1 {[%clk 0:00:33.8]} 25... Nce4 {[%clk 0:01:40.9]} 26. Nxe4
{[%clk 0:00:16.3]} 26... Nxe4 {[%clk 0:01:40.5]} 27. Qe5 {[%clk 0:00:16]} 27...
Nxf2 {[%clk 0:01:32]} 28. Ra1 {[%clk 0:00:11]} 28... Rd8 {[%clk 0:01:16.7]} 29.
Qf4 {[%clk 0:00:10.1]} 29... Nd3 {[%clk 0:01:12.4]} 30. Qe3 {[%clk 0:00:07.8]}
30... Nc5 {[%clk 0:01:01.4]} 31. Ra7 {[%clk 0:00:03]} 31... Nxb3 {[%clk
0:00:57.5]} 0-1

[Event "*** Titled Tuesday Blitz"]
[Site "Chess.com"]
[Date "2021.03.09"]
[Round "8"]
[White "FairChess_on_YouTube"]
[Black "eljanov"]
[Result "1-0"]
[WhiteElo "2976"]
[BlackElo "2848"]
[TimeControl "180+1"]
[EndTime "11:30:40 PST"]
[Termination "FairChess_on_YouTube won by resignation"]

1. b4 {[%clk 0:03:00.9]} 1... e5 {[%clk 0:02:56.3]} 2. Bb2 {[%clk 0:03:01.1]}
2... d6 {[%clk 0:02:54.5]} 3. g3 {[%clk 0:02:57.5]} 3... g6 {[%clk 0:02:52.4]}
4. d4 {[%clk 0:02:48.1]} 4... Bg7 {[%clk 0:02:52.1]} 5. dxe5 {[%clk 0:02:47.9]}
5... Nc6 {[%clk 0:02:50.4]} 6. Bg2 {[%clk 0:02:42.6]} 6... Nxe5 {[%clk
0:02:45.9]} 7. Qc1 {[%clk 0:02:31.4]} 7... Nf6 {[%clk 0:02:42.6]} 8. Nf3 {[%clk
0:02:29.6]} 8... Nc4 {[%clk 0:02:41]} 9. Bc3 {[%clk 0:02:24.5]} 9... O-O {[%clk
0:02:40.4]} 10. Nbd2 {[%clk 0:02:17.3]} 10... Nxd2 {[%clk 0:02:34]} 11. Nxd2
{[%clk 0:02:18.2]} 11... Re8 {[%clk 0:02:30.7]} 12. Qb2 {[%clk 0:02:09.1]} 12...
d5 {[%clk 0:01:59.7]} 13. e3 {[%clk 0:02:09.2]} 13... c6 {[%clk 0:02:00]} 14.
O-O {[%clk 0:02:06.6]} 14... Nh5 {[%clk 0:01:54.2]} 15. b5 {[%clk 0:02:00.5]}
15... Bxc3 {[%clk 0:01:48.7]} 16. Qxc3 {[%clk 0:02:01.4]} 16... cxb5 {[%clk
0:01:49.1]} 17. Qc5 {[%clk 0:01:48.2]} 17... a6 {[%clk 0:01:44.7]} 18. a4 {[%clk
0:01:34.6]} 18... bxa4 {[%clk 0:01:40.8]} 19. Rxa4 {[%clk 0:01:35.5]} 19... Nf6
{[%clk 0:01:40.5]} 20. Rb1 {[%clk 0:01:32.6]} 20... Bd7 {[%clk 0:01:38.1]} 21.
Rf4 {[%clk 0:01:32]} 21... Bc6 {[%clk 0:01:36.6]} 22. Nb3 {[%clk 0:01:27.6]}
22... Ne4 {[%clk 0:01:31.6]} 23. Qd4 {[%clk 0:01:27.5]} 23... Qe7 {[%clk
0:01:26.5]} 24. Qa1 {[%clk 0:01:17.8]} 24... Bb5 {[%clk 0:01:17.3]} 25. Nd4
{[%clk 0:01:15.9]} 25... Bc4 {[%clk 0:01:17.6]} 26. h4 {[%clk 0:01:10]} 26... b5
{[%clk 0:01:15.4]} 27. h5 {[%clk 0:01:06.5]} 27... Qe5 {[%clk 0:01:07.7]} 28.
hxg6 {[%clk 0:01:03.6]} 28... hxg6 {[%clk 0:01:04.2]} 29. Bxe4 {[%clk 0:01:02]}
29... dxe4 {[%clk 0:01:03.9]} 30. Kg2 {[%clk 0:01:02.5]} 30... a5 {[%clk
0:00:56.7]} 31. Rh1 {[%clk 0:01:01.1]} 31... Kg7 {[%clk 0:00:47.8]} 32. Rfh4
{[%clk 0:00:47]} 32... a4 {[%clk 0:00:48]} 33. Rh7+ {[%clk 0:00:44]} 33... Kf6
{[%clk 0:00:48.3]} 34. R1h4 {[%clk 0:00:42.1]} 34... Ra6 {[%clk 0:00:32]} 35.
Rf4+ {[%clk 0:00:37.7]} 35... Ke7 {[%clk 0:00:32.3]} 36. Nc6+ {[%clk 0:00:36.7]}
1-0

[Event "*** Titled Tuesday Blitz"]
[Site "Chess.com"]
[Date "2021.03.09"]
[Round "8"]
[White "Zhigalko_Sergei"]
[Black "SaraciNderim"]
[Result "1-0"]
[WhiteElo "2942"]
[BlackElo "2794"]
[TimeControl "180+1"]
[EndTime "11:30:40 PST"]
[Termination "Zhigalko_Sergei won by checkmate"]

1. e4 {[%clk 0:03:00.9]} 1... e5 {[%clk 0:02:56.9]} 2. Nf3 {[%clk 0:03:00.2]}
2... Nc6 {[%clk 0:02:56.5]} 3. Bc4 {[%clk 0:02:59.4]} 3... Bc5 {[%clk 0:02:56]}
4. b4 {[%clk 0:02:58.5]} 4... Bxb4 {[%clk 0:02:55.7]} 5. c3 {[%clk 0:02:58.7]}
5... Ba5 {[%clk 0:02:48.4]} 6. d4 {[%clk 0:02:58.7]} 6... Qe7 {[%clk 0:02:44.2]}
7. O-O {[%clk 0:02:46.3]} 7... Bb6 {[%clk 0:02:27.9]} 8. Nbd2 {[%clk 0:02:10.5]}
8... d6 {[%clk 0:02:18.5]} 9. a4 {[%clk 0:02:06.2]} 9... a6 {[%clk 0:02:09.1]}
10. a5 {[%clk 0:01:43.5]} 10... Nxa5 {[%clk 0:01:26.1]} 11. dxe5 {[%clk
0:01:39]} 11... Nxc4 {[%clk 0:01:19.8]} 12. Nxc4 {[%clk 0:01:36.4]} 12... dxe5
{[%clk 0:01:19.9]} 13. Nxb6 {[%clk 0:01:22.8]} 13... cxb6 {[%clk 0:01:18.4]} 14.
Ba3 {[%clk 0:01:23]} 14... Qe6 {[%clk 0:01:09.3]} 15. Ng5 {[%clk 0:01:11.2]}
15... Qg6 {[%clk 0:01:01.5]} 16. f4 {[%clk 0:01:02.2]} 16... exf4 {[%clk
0:00:53.6]} 17. Qd5 {[%clk 0:01:01.1]} 17... Ne7 {[%clk 0:00:39.1]} 18. Bxe7
{[%clk 0:00:43.4]} 18... Kxe7 {[%clk 0:00:39.2]} 19. Rad1 {[%clk 0:00:30.4]}
19... Qc6 {[%clk 0:00:05.5]} 20. Qxf7# {[%clk 0:00:28.9]} 1-0

[Event "*** Titled Tuesday Blitz"]
[Site "Chess.com"]
[Date "2021.03.09"]
[Round "8"]
[White "mary-sanna"]
[Black "Romadk"]
[Result "1/2-1/2"]
[WhiteElo "2064"]
[BlackElo "2318"]
[TimeControl "180+1"]
[EndTime "11:30:42 PST"]
[Termination "Game drawn by repetition"]

1. d4 {[%clk 0:03:00.9]} 1... Nf6 {[%clk 0:02:59.4]} 2. Bf4 {[%clk 0:02:59.9]}
2... c5 {[%clk 0:02:58.4]} 3. d5 {[%clk 0:02:59.6]} 3... b5 {[%clk 0:02:56.1]}
4. c4 {[%clk 0:02:31]} 4... bxc4 {[%clk 0:02:54.6]} 5. Nc3 {[%clk 0:02:30.8]}
5... Qb6 {[%clk 0:02:45.9]} 6. Qd2 {[%clk 0:02:21.9]} 6... e6 {[%clk 0:02:25.5]}
7. e4 {[%clk 0:02:15.9]} 7... Ba6 {[%clk 0:02:18.2]} 8. Nf3 {[%clk 0:01:47.4]}
8... g6 {[%clk 0:02:13.9]} 9. Ne5 {[%clk 0:01:35.7]} 9... Bg7 {[%clk 0:02:02.1]}
10. Nxc4 {[%clk 0:01:34.7]} 10... Bxc4 {[%clk 0:01:56.1]} 11. Bxc4 {[%clk
0:01:35.6]} 11... O-O {[%clk 0:01:56]} 12. O-O {[%clk 0:01:29.2]} 12... Nh5
{[%clk 0:01:53.2]} 13. Be3 {[%clk 0:01:19.2]} 13... Na6 {[%clk 0:01:42.9]} 14.
Bxa6 {[%clk 0:01:17.3]} 14... Qxa6 {[%clk 0:01:43.8]} 15. Bxc5 {[%clk
0:01:17.5]} 15... Rfc8 {[%clk 0:01:40]} 16. Bd4 {[%clk 0:01:16.6]} 16... e5
{[%clk 0:01:38.1]} 17. Be3 {[%clk 0:01:14.9]} 17... Rab8 {[%clk 0:01:35.8]} 18.
a3 {[%clk 0:01:12.9]} 18... Rb3 {[%clk 0:01:25]} 19. Rfc1 {[%clk 0:01:11.5]}
19... Rcb8 {[%clk 0:01:24.1]} 20. Nd1 {[%clk 0:01:10.9]} 20... Rd3 {[%clk
0:01:13.1]} 21. Qe1 {[%clk 0:00:58.6]} 21... f5 {[%clk 0:01:04.2]} 22. f3 {[%clk
0:00:54.9]} 22... fxe4 {[%clk 0:00:59.7]} 23. fxe4 {[%clk 0:00:54.9]} 23... Qa4
{[%clk 0:00:52.1]} 24. Rc3 {[%clk 0:00:51.1]} 24... Qxe4 {[%clk 0:00:50.3]} 25.
Nf2 {[%clk 0:00:48.6]} 25... Qxe3 {[%clk 0:00:38.7]} 26. Qxe3 {[%clk 0:00:48.1]}
26... Rxe3 {[%clk 0:00:39.6]} 27. Rxe3 {[%clk 0:00:48.6]} 27... Rxb2 {[%clk
0:00:39.9]} 28. Nd3 {[%clk 0:00:45.8]} 28... Rb3 {[%clk 0:00:38.5]} 29. Rae1
{[%clk 0:00:44.1]} 29... d6 {[%clk 0:00:36.1]} 30. Nb4 {[%clk 0:00:42.7]} 30...
Rb2 {[%clk 0:00:34.9]} 31. R1e2 {[%clk 0:00:40.4]} 31... Rb1+ {[%clk 0:00:34.8]}
32. Re1 {[%clk 0:00:40.7]} 32... Rb2 {[%clk 0:00:35.2]} 33. R3e2 {[%clk
0:00:40.9]} 33... Rb3 {[%clk 0:00:34.9]} 34. Re3 {[%clk 0:00:37.8]} 34... Rb2
{[%clk 0:00:34.8]} 1/2-1/2

[Event "*** Titled Tuesday Blitz"]
[Site "Chess.com"]
[Date "2021.03.09"]
[Round "8"]
[White "Moon_stone123"]
[Black "Nemsko"]
[Result "1-0"]
[WhiteElo "2503"]
[BlackElo "2298"]
[TimeControl "180+1"]
[EndTime "11:30:47 PST"]
[Termination "Moon_stone123 won by resignation"]

1. e4 {[%clk 0:03:00.4]} 1... c5 {[%clk 0:02:57.4]} 2. Nf3 {[%clk 0:02:58.9]}
2... d6 {[%clk 0:02:57]} 3. d4 {[%clk 0:02:58.5]} 3... cxd4 {[%clk 0:02:57.9]}
4. Nxd4 {[%clk 0:02:58.3]} 4... Nf6 {[%clk 0:02:57.5]} 5. Nc3 {[%clk 0:02:58.1]}
5... Nc6 {[%clk 0:02:54.5]} 6. Bg5 {[%clk 0:02:57.1]} 6... e6 {[%clk 0:02:52.5]}
7. Qd3 {[%clk 0:02:54.4]} 7... a6 {[%clk 0:02:45.2]} 8. O-O-O {[%clk 0:02:51.5]}
8... Bd7 {[%clk 0:02:40.5]} 9. Kb1 {[%clk 0:02:49.7]} 9... b5 {[%clk 0:02:39.1]}
10. a3 {[%clk 0:02:47.4]} 10... Qb6 {[%clk 0:02:33]} 11. Bxf6 {[%clk 0:02:44.3]}
11... gxf6 {[%clk 0:02:31.6]} 12. Nxc6 {[%clk 0:02:44.6]} 12... Bxc6 {[%clk
0:02:31]} 13. Ne2 {[%clk 0:02:30.6]} 13... a5 {[%clk 0:02:19.8]} 14. Nd4 {[%clk
0:02:29.9]} 14... Bd7 {[%clk 0:02:13]} 15. Nxb5 {[%clk 0:02:26.8]} 15... Rb8
{[%clk 0:02:06.8]} 16. a4 {[%clk 0:02:25.7]} 16... Qxf2 {[%clk 0:01:56.4]} 17.
Nxd6+ {[%clk 0:02:08.2]} 17... Bxd6 {[%clk 0:01:48.5]} 18. Qxd6 {[%clk
0:02:09.1]} 18... Qa7 {[%clk 0:01:33.1]} 19. Be2 {[%clk 0:01:35.1]} 19... Bxa4
{[%clk 0:01:16.1]} 20. Bh5 {[%clk 0:01:34.6]} 20... Bd7 {[%clk 0:01:09.5]} 21.
Rhf1 {[%clk 0:01:30.4]} 21... Qb7 {[%clk 0:01:03]} 22. Qd4 {[%clk 0:01:18.7]}
22... e5 {[%clk 0:00:30.1]} 23. Qc3 {[%clk 0:01:17.8]} 23... Qb4 {[%clk
0:00:23.9]} 24. Qxb4 {[%clk 0:01:13.9]} 24... Rxb4 {[%clk 0:00:24.8]} 25. Rxf6
{[%clk 0:01:13.8]} 25... Be6 {[%clk 0:00:24.7]} 26. Rxe6+ {[%clk 0:01:12.3]}
26... Kf8 {[%clk 0:00:25.1]} 27. Rd8+ {[%clk 0:01:09.8]} 27... Kg7 {[%clk
0:00:24.4]} 28. Rxh8 {[%clk 0:01:10.6]} 28... fxe6 {[%clk 0:00:20.5]} 29. Ra8
{[%clk 0:01:04]} 29... Rxe4 {[%clk 0:00:19.5]} 30. Bf3 {[%clk 0:01:03.1]} 30...
Re1+ {[%clk 0:00:19]} 31. Ka2 {[%clk 0:01:02.6]} 31... e4 {[%clk 0:00:19.6]} 32.
Bg4 {[%clk 0:00:57.3]} 32... e3 {[%clk 0:00:19.6]} 33. Rxa5 {[%clk 0:00:55.4]}
33... Rg1 {[%clk 0:00:15.8]} 34. Bf3 {[%clk 0:00:54.3]} 34... e2 {[%clk
0:00:15.6]} 35. Bxe2 {[%clk 0:00:51.2]} 35... Rxg2 {[%clk 0:00:16.1]} 36. Bd3
{[%clk 0:00:51.7]} 36... Rxh2 {[%clk 0:00:16.2]} 37. b4 {[%clk 0:00:50.8]} 37...
h5 {[%clk 0:00:14.7]} 38. b5 {[%clk 0:00:49.1]} 38... h4 {[%clk 0:00:11.8]} 39.
b6 {[%clk 0:00:49.4]} 1-0

[Event "*** Titled Tuesday Blitz"]
[Site "Chess.com"]
[Date "2021.03.09"]
[Round "8"]
[White "Savagelittlemole"]
[Black "Fraler15"]
[Result "1-0"]
[WhiteElo "2530"]
[BlackElo "2301"]
[TimeControl "180+1"]
[EndTime "11:30:48 PST"]
[Termination "Savagelittlemole won on time"]

1. e4 {[%clk 0:03:00.9]} 1... c5 {[%clk 0:02:58.4]} 2. Ne2 {[%clk 0:03:00.8]}
2... Nc6 {[%clk 0:02:57.9]} 3. g3 {[%clk 0:03:01]} 3... g6 {[%clk 0:02:57.8]} 4.
Bg2 {[%clk 0:03:01.7]} 4... Bg7 {[%clk 0:02:58.2]} 5. O-O {[%clk 0:03:02.4]}
5... e6 {[%clk 0:02:58.4]} 6. c3 {[%clk 0:03:03.1]} 6... Nge7 {[%clk 0:02:59]}
7. d4 {[%clk 0:03:03.7]} 7... cxd4 {[%clk 0:02:57.4]} 8. cxd4 {[%clk 0:03:04.6]}
8... d5 {[%clk 0:02:56.1]} 9. e5 {[%clk 0:03:04.5]} 9... O-O {[%clk 0:02:56.7]}
10. Nbc3 {[%clk 0:03:04.7]} 10... Rb8 {[%clk 0:02:54.4]} 11. Be3 {[%clk
0:03:04.3]} 11... Nf5 {[%clk 0:02:52.7]} 12. Qd2 {[%clk 0:03:04.1]} 12... b5
{[%clk 0:02:43.9]} 13. Rac1 {[%clk 0:03:03]} 13... b4 {[%clk 0:02:38]} 14. Nxd5
{[%clk 0:02:56.7]} 14... Ncxd4 {[%clk 0:02:06.1]} 15. Nxd4 {[%clk 0:02:49.6]}
15... exd5 {[%clk 0:01:57.2]} 16. Nc6 {[%clk 0:02:45.4]} 16... Qc7 {[%clk
0:01:42.9]} 17. Nxb8 {[%clk 0:02:42.1]} 17... Qxb8 {[%clk 0:01:43.8]} 18. Bxd5
{[%clk 0:02:37.8]} 18... Ba6 {[%clk 0:01:38.4]} 19. Rfd1 {[%clk 0:02:34.9]}
19... Bxe5 {[%clk 0:01:33.5]} 20. Be4 {[%clk 0:02:25.1]} 20... Nxe3 {[%clk
0:01:29.4]} 21. Qxe3 {[%clk 0:02:13.7]} 21... Re8 {[%clk 0:01:19.8]} 22. Bc6
{[%clk 0:02:02.9]} 22... Rc8 {[%clk 0:01:13.9]} 23. Bd5 {[%clk 0:01:52.7]} 23...
Bxb2 {[%clk 0:01:04]} 24. Qf3 {[%clk 0:01:20.4]} 24... Rf8 {[%clk 0:00:39.5]}
25. Rc2 {[%clk 0:01:16.6]} 25... Bg7 {[%clk 0:00:35.8]} 26. Rdc1 {[%clk
0:01:11.3]} 26... Bb5 {[%clk 0:00:30.6]} 27. Rc7 {[%clk 0:01:08.6]} 27... Be8
{[%clk 0:00:17.2]} 28. Rc8 {[%clk 0:01:08]} 28... Qb5 {[%clk 0:00:11]} 29. R1c5
{[%clk 0:01:02.5]} 29... Qa4 {[%clk 0:00:09.9]} 30. R5c7 {[%clk 0:00:56.8]}
30... Be5 {[%clk 0:00:03.8]} 31. Re7 {[%clk 0:00:52.5]} 31... Bd6 {[%clk
0:00:02.8]} 32. Rexe8 {[%clk 0:00:50.9]} 1-0

[Event "*** Titled Tuesday Blitz"]
[Site "Chess.com"]
[Date "2021.03.09"]
[Round "8"]
[White "TigrVShlyape"]
[Black "SilviusTiberius"]
[Result "1/2-1/2"]
[WhiteElo "2831"]
[BlackElo "2527"]
[TimeControl "180+1"]
[EndTime "11:30:49 PST"]
[Termination "Game drawn by repetition"]

1. e4 {[%clk 0:03:00.9]} 1... e5 {[%clk 0:02:59.5]} 2. Nf3 {[%clk 0:03:00.6]}
2... Nc6 {[%clk 0:03:00]} 3. Bb5 {[%clk 0:03:00.2]} 3... Nf6 {[%clk 0:03:00.3]}
4. O-O {[%clk 0:02:59.3]} 4... Nxe4 {[%clk 0:03:00]} 5. d4 {[%clk 0:02:58.1]}
5... Nd6 {[%clk 0:03:00]} 6. Bxc6 {[%clk 0:02:58.5]} 6... dxc6 {[%clk
0:03:00.9]} 7. dxe5 {[%clk 0:02:59]} 7... Nf5 {[%clk 0:03:01.6]} 8. Qxd8+ {[%clk
0:02:59.2]} 8... Kxd8 {[%clk 0:03:02.2]} 9. Rd1+ {[%clk 0:02:59.7]} 9... Ke8
{[%clk 0:03:02.2]} 10. Nc3 {[%clk 0:03:00.3]} 10... h5 {[%clk 0:03:02.4]} 11.
Bf4 {[%clk 0:02:50.5]} 11... Be7 {[%clk 0:02:57.3]} 12. Ne4 {[%clk 0:02:39]}
12... Be6 {[%clk 0:02:56.8]} 13. b3 {[%clk 0:02:34.8]} 13... a5 {[%clk
0:02:39.3]} 14. c4 {[%clk 0:02:31.5]} 14... a4 {[%clk 0:02:38.4]} 15. Nfg5
{[%clk 0:02:28.7]} 15... Rh6 {[%clk 0:02:35.1]} 16. Nxe6 {[%clk 0:02:27.9]}
16... Rxe6 {[%clk 0:02:34.4]} 17. f3 {[%clk 0:02:24.5]} 17... axb3 {[%clk
0:02:28.7]} 18. axb3 {[%clk 0:02:23.9]} 18... Rxa1 {[%clk 0:02:28.3]} 19. Rxa1
{[%clk 0:02:23.5]} 19... Nd4 {[%clk 0:02:28.8]} 20. Kf2 {[%clk 0:02:16.6]} 20...
Nxb3 {[%clk 0:02:23.8]} 21. Ra8+ {[%clk 0:02:06.8]} 21... Kd7 {[%clk 0:02:22.4]}
22. Rb8 {[%clk 0:02:00.6]} 22... Nc5 {[%clk 0:02:18.1]} 23. Nxc5+ {[%clk
0:01:41.8]} 23... Bxc5+ {[%clk 0:02:17.6]} 24. Ke2 {[%clk 0:01:40.8]} 24... b6
{[%clk 0:02:14.3]} 25. Kd3 {[%clk 0:01:39.7]} 25... Re8 {[%clk 0:01:58.9]} 26.
Rxe8 {[%clk 0:01:38.4]} 26... Kxe8 {[%clk 0:01:58.9]} 27. h3 {[%clk 0:01:30.6]}
27... Kd7 {[%clk 0:01:57.9]} 28. g4 {[%clk 0:01:25.9]} 28... hxg4 {[%clk
0:01:56.2]} 29. hxg4 {[%clk 0:01:25.7]} 29... Ke6 {[%clk 0:01:56.6]} 30. Bg3
{[%clk 0:01:24.4]} 30... b5 {[%clk 0:01:48.7]} 31. f4 {[%clk 0:01:24.2]} 31...
g6 {[%clk 0:01:39.9]} 32. Ke4 {[%clk 0:01:24.4]} 32... Ba3 {[%clk 0:01:24.5]}
33. f5+ {[%clk 0:01:24.2]} 33... gxf5+ {[%clk 0:01:25.4]} 34. gxf5+ {[%clk
0:01:23.9]} 34... Kd7 {[%clk 0:01:25.8]} 35. Kd3 {[%clk 0:01:23.1]} 35... Bb2
{[%clk 0:01:24.5]} 36. Kc2 {[%clk 0:01:22.4]} 36... Ba1 {[%clk 0:01:23]} 37. Kb3
{[%clk 0:01:22.3]} 37... Kc8 {[%clk 0:01:21.2]} 38. Kb4 {[%clk 0:01:22.1]} 38...
bxc4 {[%clk 0:01:18.2]} 39. Kxc4 {[%clk 0:01:22.3]} 39... Kd7 {[%clk 0:01:17.6]}
40. Bf4 {[%clk 0:01:22.1]} 40... Bb2 {[%clk 0:01:17.2]} 41. Kd3 {[%clk
0:01:22.1]} 41... Ba1 {[%clk 0:01:14.8]} 42. Ke4 {[%clk 0:01:22.4]} 42... Bb2
{[%clk 0:01:14.6]} 43. Be3 {[%clk 0:01:22.6]} 43... Ba3 {[%clk 0:01:11.9]} 44.
Kd3 {[%clk 0:01:21.1]} 44... Bf8 {[%clk 0:01:11.1]} 45. Kc4 {[%clk 0:01:20.3]}
45... Bg7 {[%clk 0:01:07.6]} 46. Bd4 {[%clk 0:01:20.3]} 46... Bh6 {[%clk
0:01:08]} 47. Bc5 {[%clk 0:01:18.7]} 47... Bg7 {[%clk 0:01:06.7]} 48. Kd4 {[%clk
0:01:18.7]} 48... Bh6 {[%clk 0:01:05.8]} 49. Ke4 {[%clk 0:01:18.8]} 49... Bc1
{[%clk 0:01:04.6]} 50. Kf3 {[%clk 0:01:18.1]} 50... Bb2 {[%clk 0:01:04]} 51. Kf4
{[%clk 0:01:18.1]} 51... Ba1 {[%clk 0:01:03.4]} 52. Ke4 {[%clk 0:01:16.3]} 52...
Bb2 {[%clk 0:01:02.7]} 53. Bb4 {[%clk 0:01:14.2]} 53... Bc1 {[%clk 0:01:01.4]}
54. Bc5 {[%clk 0:01:08.5]} 54... Bd2 {[%clk 0:01:00.4]} 55. Kf3 {[%clk
0:01:05.8]} 55... Bc3 {[%clk 0:00:59.3]} 56. Kf4 {[%clk 0:01:05.6]} 56... Bd2+
{[%clk 0:00:58.1]} 57. Ke4 {[%clk 0:01:04.6]} 57... Bc1 {[%clk 0:00:57]} 58. Kd4
{[%clk 0:00:59.9]} 58... Bb2+ {[%clk 0:00:55.4]} 59. Ke4 {[%clk 0:00:59.8]}
59... Bc1 {[%clk 0:00:55.4]} 1/2-1/2

[Event "*** Titled Tuesday Blitz"]
[Site "Chess.com"]
[Date "2021.03.09"]
[Round "8"]
[White "anon102030"]
[Black "IANOV0007"]
[Result "1/2-1/2"]
[WhiteElo "2676"]
[BlackElo "2493"]
[TimeControl "180+1"]
[EndTime "11:30:50 PST"]
[Termination "Game drawn by repetition"]

1. e4 {[%clk 0:03:00.9]} 1... d6 {[%clk 0:02:57.7]} 2. Nc3 {[%clk 0:03:00.5]}
2... Nf6 {[%clk 0:02:56.9]} 3. g3 {[%clk 0:03:00.4]} 3... e5 {[%clk 0:02:55.8]}
4. Bg2 {[%clk 0:03:00.4]} 4... Be7 {[%clk 0:02:55.8]} 5. d3 {[%clk 0:03:00.9]}
5... O-O {[%clk 0:02:55.4]} 6. f4 {[%clk 0:03:01.2]} 6... Nc6 {[%clk 0:02:53.3]}
7. Nf3 {[%clk 0:03:01.2]} 7... Bg4 {[%clk 0:02:51.9]} 8. O-O {[%clk 0:03:00.7]}
8... Nd4 {[%clk 0:02:50.6]} 9. Be3 {[%clk 0:02:59.5]} 9... c5 {[%clk 0:02:47.5]}
10. Qd2 {[%clk 0:02:58.8]} 10... Nxf3+ {[%clk 0:02:42.4]} 11. Bxf3 {[%clk
0:02:59.7]} 11... Bxf3 {[%clk 0:02:42.3]} 12. Rxf3 {[%clk 0:03:00.6]} 12... a6
{[%clk 0:02:39.3]} 13. h3 {[%clk 0:02:52.5]} 13... b5 {[%clk 0:02:35.9]} 14. g4
{[%clk 0:02:46.5]} 14... b4 {[%clk 0:02:33.6]} 15. Ne2 {[%clk 0:02:45.5]} 15...
Nd7 {[%clk 0:02:26.5]} 16. Raf1 {[%clk 0:02:36.2]} 16... a5 {[%clk 0:02:19.8]}
17. Ng3 {[%clk 0:02:31.5]} 17... exf4 {[%clk 0:02:18.1]} 18. Bxf4 {[%clk
0:02:30.1]} 18... Ne5 {[%clk 0:02:08.1]} 19. Bxe5 {[%clk 0:02:21.8]} 19... dxe5
{[%clk 0:02:07.5]} 20. b3 {[%clk 0:02:17.3]} 20... Bg5 {[%clk 0:02:03]} 21. Qf2
{[%clk 0:02:12.1]} 21... Qd4 {[%clk 0:02:00.4]} 22. Kg2 {[%clk 0:02:08.8]} 22...
Qxf2+ {[%clk 0:01:59]} 23. R1xf2 {[%clk 0:02:08.2]} 23... g6 {[%clk 0:01:58.5]}
24. Ne2 {[%clk 0:01:55.9]} 24... a4 {[%clk 0:01:50.8]} 25. Kg3 {[%clk
0:01:50.2]} 25... axb3 {[%clk 0:01:50.6]} 26. axb3 {[%clk 0:01:51]} 26... Ra2
{[%clk 0:01:48.4]} 27. Ng1 {[%clk 0:01:39.8]} 27... Bf4+ {[%clk 0:01:37]} 28.
Kg2 {[%clk 0:01:38.4]} 28... Kg7 {[%clk 0:01:25.8]} 29. h4 {[%clk 0:01:29.4]}
29... h6 {[%clk 0:01:22.9]} 30. Nh3 {[%clk 0:01:20.9]} 30... g5 {[%clk
0:01:18.7]} 31. Re2 {[%clk 0:01:16.3]} 31... Rfa8 {[%clk 0:01:11.8]} 32. Rff2
{[%clk 0:01:10.2]} 32... Rb2 {[%clk 0:01:09]} 33. Nxf4 {[%clk 0:01:00.9]} 33...
gxf4 {[%clk 0:01:06.4]} 34. Kf3 {[%clk 0:00:58.7]} 34... Ra1 {[%clk 0:01:03.1]}
35. Rh2 {[%clk 0:00:48.8]} 35... Rg1 {[%clk 0:00:58.5]} 36. Reg2 {[%clk
0:00:38.6]} 36... Rf1+ {[%clk 0:00:55.7]} 37. Ke2 {[%clk 0:00:36.9]} 37... Rc1
{[%clk 0:00:52.9]} 38. Kf3 {[%clk 0:00:37.1]} 38... Re1 {[%clk 0:00:51]} 39. Re2
{[%clk 0:00:36.1]} 39... Rf1+ {[%clk 0:00:50.3]} 40. Rhf2 {[%clk 0:00:36.5]}
40... Rg1 {[%clk 0:00:49.6]} 41. Rg2 {[%clk 0:00:35.8]} 41... Rh1 {[%clk
0:00:49.2]} 42. Rh2 {[%clk 0:00:33.5]} 42... Rf1+ {[%clk 0:00:48.1]} 43. Rhf2
{[%clk 0:00:32.3]} 43... Rg1 {[%clk 0:00:47.8]} 44. Rg2 {[%clk 0:00:31.3]} 44...
Rf1+ {[%clk 0:00:47.7]} 45. Rgf2 {[%clk 0:00:30.4]} 1/2-1/2